Cogmind - Beta 13 @@@ ROGUE MODE // 2024.05.23 @ 13:55:31 Player: KingCain Result: Destroyed by S-10 Pest with Light Assault Rifle Performance ------------- Evolutions (0) 0 Regions Visited (4) 800 Robots Destroyed (10) 50 Value Destroyed (151) 151 Prototype IDs (0) 0 Alien Tech Used (0) 0 Bonus (0) 0 TOTAL SCORE: 1001 Bonus ------- None Cogmind --------- Core Integrity 0/250 Matter 300/300 Energy 250/250 System Corruption 0% Temperature Cool (0) Movement Rolling (195) Ox7 Location -9/Mines Parts ------- > --- POWER (1) -------- Ion Engine > --- PROPULSION (2) --- Wheel Compact Wheel > --- UTILITY (2) ------ Humpback > --- WEAPON (2) ------- (None) > --- INVENTORY (35) --- Light Nuclear Core Peak State ------------ > --- POWER ------------ Ion Engine > --- PROPULSION ------- Light Treads Light Treads > --- UTILITY ---------- Signal Interpreter > --- WEAPON ----------- EM Pulse Gun Medium Laser > --- INVENTORY -------- Ion Engine Wheel Compact Wheel [Rating: 6] Favorites ----------- Power Ion Engine Engine Ion Engine Propulsion Compact Wheel Treads Light Treads Wheel Compact Wheel Utility Humpback Storage Humpback Processor Signal Interpreter Weapon Medium Laser Energy Gun Medium Laser Build | -11 -10 -10 -10 -9 ------- Run | Yrd Mat Min Exi Min Slots Evolved . | . . . . . Power . | . . . . . Propulsion . | . . . . . Utility . | . . . . . Weapon . | . . . . . Parts Attached 10 | 5 1 3 1 . Power 2 | 1 . 1 . . Engine 2 | 1 . 1 . . Core . | . . . . . Reactor . | . . . . . Propulsion 4 | 2 . 2 . . Treads 2 | 2 . . . . Leg . | . . . . . Wheel 2 | . . 2 . . Hover . | . . . . . Flight . | . . . . . Utility 2 | . 1 . 1 . Device . | . . . . . Storage 1 | . . . 1 . Processor 1 | . 1 . . . Hackware . | . . . . . Protection . | . . . . . Artifact . | . . . . . Weapon 2 | 2 . . . . Energy Gun 2 | 2 . . . . Energy Cannon . | . . . . . Ballistic Gun . | . . . . . Ballistic Cannon . | . . . . . Launcher . | . . . . . Special Weapon . | . . . . . Impact Weapon . | . . . . . Slashing Weapon . | . . . . . Piercing Weapon . | . . . . . Special Melee Weapon . | . . . . . Unidentified Prototypes . | . . . . . Parts Lost 4 | . 4 . . . Power . | . . . . . Propulsion 2 | . 2 . . . Utility . | . . . . . Weapon 2 | . 2 . . . Highest Loss Streak 3 | . 3 . . . To Critical Strikes . | . . . . . Average Slot Usage (%) 59 | . 70 57 56 57 Engine 14 | . 14 14 14 14 Treads 5 | . 27 . . . Wheel 22 | . . 28 28 28 Storage 8 | . . . 11 14 Processor 4 | . 8 14 2 . Energy Gun 4 | . 20 . . . Naked Turns . | . . . . . Heaviest Build 205 | 9 9 5 205 205 Greatest Support 40 | 40 40 26 26 26 Greatest Overweight (x) 7 | . 1 . 7 7 Average Overweight (x) 3 | . . . 4 7 Largest Inventory Capacity 35 | 5 5 5 35 35 Average Capacity 20 | 5 5 5 29 35 Most Carried 4 | 3 4 4 1 1 Average Carried 1 | 2 3 1 1 1 Final Capacity 35 | 5 5 5 35 35 Final Carried 4 | 3 4 1 1 1 Class Distribution -------------------- 53% | Hauler-Mutant 46% | Mutant Dominant Class ---------------- Mutant | -10/Materials Mutant | -10/Mines Hauler-Mutant | -10/Exiles Hauler-Mutant | -9/Mines Resources | -11 -10 -10 -10 -9 ----------- Run | Yrd Mat Min Exi Min Matter Collected 286 | 243 5 30 . 8 Remotely . | . . . . . Salvage Created 309 | 106 163 . . 40 Parts 23 | 11 8 . . 4 Haulers Intercepted . | . . . . . Recyclers Shooed 2 | 2 . . . . Parts Field Recycled . | . . . . . Retrieved Matter . | . . . . . Parts Self-Destructed . | . . . . . Prevented . | . . . . . Kills | -11 -10 -10 -10 -9 ------- Run | Yrd Mat Min Exi Min Combat Hostiles Destroyed 6 | . 4 . . 2 Melee 2 | . . . . 2 Guns 4 | . 4 . . . Classes Destroyed 6 | 3 3 . . . Worker 1 | 1 . . . . Tunneler 1 | 1 . . . . Recycler 1 | 1 . . . . Watcher 1 | . 1 . . . Swarmer 4 | . 2 . . 2 Grunt 2 | . 2 . . . Best Kill Streak 3 | 2 3 . . 2 Combat Bots Only 2 | . 2 . . 2 Max Kills in Single Turn 2 | 1 2 . . 1 Gunslinging 1 | . 1 . . . Exploded . | . . . . . Melee 1 | . . . . 1 Uniques/NPCs Destroyed . | . . . . . Combat | -11 -10 -10 -10 -9 -------- Run | Yrd Mat Min Exi Min Hostile Shots Fired 140 | . 84 . . 56 Missed 45 | . 28 . . 17 Damage Taken 986 | . 639 1 . 346 Core 255 | . 173 . . 82 Absorbed by Shields . | . . . . . Core Remaining (%) 100 | 100 . . . . Volleys Fired 27 | 8 19 . . . Largest 2 | 2 2 . . . Hottest 90 | 90 90 . . . Shots Fired 43 | 16 27 . . . Gun 43 | 16 27 . . . Cannon . | . . . . . Launcher . | . . . . . Special . | . . . . . Kinetic . | . . . . . Thermal 27 | 8 19 . . . Explosive . | . . . . . Electromagnetic 16 | 8 8 . . . Robot Hit Streak 8 | 7 8 . . . Robot Miss Streak 3 | 1 3 . . . Penetration Max . | . . . . . Secondary Targets 1 | . 1 . . . Max Gunslinging Chain 1 | . 1 . . . Shots Hit Robots 28 | 12 16 . . . Core Hits 16 | 4 8 1 . 3 Critical Kills . | . . . . . Critical Parts Destroyed . | . . . . . Critical Strikes 1 | . 1 . . . Burn 1 | . 1 . . . Melee Attacks . | . . . . . Impact . | . . . . . Slashing . | . . . . . Piercing . | . . . . . Sneak Attacks . | . . . . . Combat Hostiles . | . . . . . Follow-up Attacks . | . . . . . Damage Inflicted 431 | 151 222 3 . 55 Guns 366 | 148 218 . . . Cannons . | . . . . . Explosions . | . . . . . Melee . | . . . . . Ramming 65 | 3 4 3 . 55 Kinetic . | . . . . . Thermal 240 | 86 154 . . . Explosive . | . . . . . Electromagnetic 126 | 62 64 . . . Impact . | . . . . . Slashing . | . . . . . Piercing . | . . . . . Highest Corruption . | . . . . . Average Corruption . | . . . . . Corruption Purged . | . . . . . Corruption Blocked . | . . . . . Overload Shots . | . . . . . Overflow Damage . | . . . . . Projectiles . | . . . . . Explosions . | . . . . . Melee . | . . . . . Knockbacks . | . . . . . Impact . | . . . . . Kinetic . | . . . . . Secondary . | . . . . . Self-Inflicted Damage 27 | . . 1 . 26 Shots . | . . . . . Rammed 11 | 2 3 1 . 5 Targets Rammed 11 | 2 3 1 . 5 Kicked . | . . . . . Crushed . | . . . . . Highest Temperature 159 | 154 159 . . . Average Temperature 57 | 67 51 . . . Received Heat Transfer 336 | . 336 . . . Siege Activations . | . . . . . Robots Corrupted . | . . . . . Combat Hostiles . | . . . . . Parts Fried . | . . . . . Impact Corruptions . | . . . . . Robots Melted . | . . . . . Combat Hostiles . | . . . . . Parts Melted 1 | . 1 . . . Heat Transferred 777 | 259 518 . . . Parts Sabotaged . | . . . . . Parts Stolen . | . . . . . Parts Stripped . | . . . . . Power Chain Reactions . | . . . . . Alert | -11 -10 -10 -10 -9 ------- Run | Yrd Mat Min Exi Min Peak Influence 152 | 15 152 . . 40 Initial 9 | . 9 . . . Average 39 | 4 74 . . 4 Maximum Alert Level . | . . . . . Low Security (%) 100 | 100 100 100 . 100 Level 1 . | . . . . . Level 2 . | . . . . . Level 3 . | . . . . . Level 4 . | . . . . . Level 5 . | . . . . . High Security . | . . . . . Max Security . | . . . . . Squads Dispatched 2 | . 2 . . . Investigation 1 | . 1 . . . Extermination . | . . . . . Reinforcement 1 | . 1 . . . Assault . | . . . . . Garrison . | . . . . . Intercept . | . . . . . Searches Triggered . | . . . . . Construction Impeded . | . . . . . Haulers Reinforced . | . . . . . Active Scanning Responses . | . . . . . Cargo Convoy Interrupts . | . . . . . Stealth | -11 -10 -10 -10 -9 --------- Run | Yrd Mat Min Exi Min Distress Signals 1 | . 1 . . . Communications Jammed . | . . . . . Distress Signals . | . . . . . Times Spotted 17 | . 13 . . 4 Peak Tracking Total 5 | . 5 . . 4 Tactical Retreats 1 | . 1 . . . Traps | -11 -10 -10 -10 -9 ------- Run | Yrd Mat Min Exi Min Traps Triggered 1 | . 1 . . . Indirectly . | . . . . . Trap Hack Attempts . | . . . . . Triggered . | . . . . . Disarmed . | . . . . . Reprogrammed . | . . . . . Reused . | . . . . . Traps Extracted . | . . . . . Installed . | . . . . . Triggered . | . . . . . Machines | -11 -10 -10 -10 -9 ---------- Run | Yrd Mat Min Exi Min Machines Disabled . | . . . . . Max in Single Turn . | . . . . . Machines Repaired . | . . . . . Machines Dismantled . | . . . . . Machines Sabotaged . | . . . . . Overloaded Fab Kills . | . . . . . Hacking | -11 -10 -10 -10 -9 --------- Run | Yrd Mat Min Exi Min Machines Accessed 5 | . 1 . 4 . Terminals 1 | . 1 . . . Fabricators . | . . . . . Repair Stations . | . . . . . Recycling Units . | . . . . . Scanalyzers . | . . . . . Garrison Access . | . . . . . Total Hacks 7 | . 3 . 4 . Successful 5 | . 1 . 4 . Failed 2 | . 2 . . . Catastrophic 1 | . 1 . . . Database Lockouts . | . . . . . Manual 3 | . . . 3 . Terminals 3 | . 3 . . . Fabricators . | . . . . . Repair Stations . | . . . . . Recycling Units . | . . . . . Scanalyzers . | . . . . . Garrison Access . | . . . . . Terminal Hacks 5 | . 1 . 4 . Record 5 | . 1 . 4 . Fabricator Hacks . | . . . . . Repair Station Hacks . | . . . . . Recycling Unit Hacks . | . . . . . Scanalyzer . | . . . . . Garrison Access Hacks . | . . . . . Unauthorized Hacks . | . . . . . Terminals . | . . . . . Fabricators . | . . . . . Repair Stations . | . . . . . Recycling Units . | . . . . . Scanalyzers . | . . . . . Garrison Access . | . . . . . Data Cores Recovered . | . . . . . Used . | . . . . . Hacking Detections 1 | . 1 . . . Full Trace Events 1 | . 1 . . . Feedback Events . | . . . . . Feedback Blocked . | . . . . . Robot Schematics Acquired . | . . . . . Robots Built . | . . . . . Authchips . | . . . . . Time . | . . . . . Total Robot Build Rating . | . . . . . Part Schematics Acquired . | . . . . . Parts Built . | . . . . . Authchips . | . . . . . Time . | . . . . . Total Part Build Rating . | . . . . . Parts Repaired . | . . . . . Time . | . . . . . Parts Recycled . | . . . . . Recycled Matter . | . . . . . Retrieved Matter . | . . . . . Retrieved Components . | . . . . . Parts Scanalyzed . | . . . . . Part Schematics Acquired . | . . . . . Parts Damaged . | . . . . . Bothacking | -11 -10 -10 -10 -9 ------------ Run | Yrd Mat Min Exi Min Used RIF Installer . | . . . . . Robots Hacked . | . . . . . Non-combat . | . . . . . Combat . | . . . . . Robot Hacks Applied . | . . . . . Relay Couplers Released . | . . . . . Fabnet Peak Effective % . | . . . . . Robots Rewired . | . . . . . Allies Hacked . | . . . . . Hacks Repelled . | . . . . . Allies | -11 -10 -10 -10 -9 -------- Run | Yrd Mat Min Exi Min Total Allies . | . . . . . Largest Group . | . . . . . Highest-Rated Group . | . . . . . Highest-Rated Ally . | . . . . . Total Orders . | . . . . . Ally Attacks . | . . . . . Total Damage . | . . . . . Kills . | . . . . . Allies Corrupted . | . . . . . Allies Melted . | . . . . . Intel | -11 -10 -10 -10 -9 ------- Run | Yrd Mat Min Exi Min Robot Analysis Total . | . . . . . Derelict Logs Recovered 2 | . . 2 . . Drone Launches . | . . . . . Drone Recoveries . | . . . . . Exploration | -11 -10 -10 -10 -9 ------------- Run | Yrd Mat Min Exi Min Turns Passed 2342 | 178 446 199 1486 33 Spaces Moved 1471 | 93 219 217 930 12 Core 15 | 7 8 . . . Treads 297 | 86 211 . . . Legs . | . . . . . Wheels 1159 | . . 217 930 12 Hover . | . . . . . Flight . | . . . . . Fastest Speed 50 | 50 100 90 90 195 Average Speed 148 | 151 157 90 159 195 Slowest Speed 195 | 160 160 90 195 195 Overloaded Moves . | . . . . . Propulsion Burnouts . | . . . . . Robots Hopped . | . . . . . Cave-ins Triggered . | . . . . . Exploration Rate (%) 36 | 5 36 42 93 6 Regions Visited 4 Branch Regions 3 Pre-discovered Areas 1 | . . 1 . . Known Exits Taken 2 | . 1 1 . . Unknown Exits Taken 2 | 1 . . 1 . Scrap Searched . | . . . . . Spaces Dug . | . . . . . Terrain Destroyed . | . . . . . Melee . | . . . . . Projectile . | . . . . . AOE . | . . . . . Terrain Rammed . | . . . . . Walls Destroyed . | . . . . . Machines Disabled . | . . . . . Actions | -11 -10 -10 -10 -9 --------- Run | Yrd Mat Min Exi Min Total 1569 | 110 290 221 931 17 Wait 48 | . 48 . . . Move 1467 | 92 218 216 929 12 Hop . | . . . . . Pick Up 4 | 3 1 . . . Fast Attach 7 | 5 1 . 1 . Attach 3 | . . 3 . . Detach . | . . . . . Swap . | . . . . . Drop 2 | . . 1 1 . Fire 27 | 8 19 . . . Melee . | . . . . . Ram 6 | . . 1 . 5 Kick . | . . . . . Crush 5 | 2 3 . . . Escape Stasis . | . . . . . Rewire . | . . . . . Trap . | . . . . . Miscellaneous . | . . . . . Route ------- -11/Scrapyard -10/Materials -10/Mines -10/Exiles (discovered 2 exits: [*Min x2]) -9/Mines History --------- Turn | Location | Event 10 | -11/Scrapyard | Discovered new exit (range 13) 179 | -11/Scrapyard | Entered Materials 313 | -10/Materials | Build established: Mutant 574 | -10/Materials | Core integrity fell below 50% 612 | -10/Materials | Discovered new exit (range 10) 623 | -10/Materials | Identified exit to Mines 625 | -10/Materials | Entered Mines 649 | -10/Mines | Lost 3 parts (2n1w) 651 | -10/Mines | Learned Materials interactive machine intel 723 | -10/Mines | Deemed a non-threat by the Exiles lab entrance 724 | -10/Mines | Discovered new exit (range 5) 759 | -10/Mines | Learned location of Storage (-8) 823 | -10/Mines | Identified exit to Exiles 824 | -10/Mines | Entered Exiles 824 | -10/Exiles | Found Exiles lab abandoned 846 | -10/Exiles | Discovered new exit (range 15) 1148 | -10/Exiles | Discovered new exit (range 14) 1393 | -10/Exiles | Build established: Hauler-Mutant 2310 | -10/Exiles | Entered Mines 2319 | -9/Mines | Core integrity fell below 20% 2343 | -9/Mines | Destroyed by S-10 Pest with Light Assault Rifle Last Messages --------------- coming. 01724_ Connecting with BIN's Terminal... 01780_ Connecting with DEC's Terminal... >>Record! "DEC-BYE" For the record, I voted to stay and build some amazing defenses, but HEX said this is a lab, not a battlefield. Anyway, you're too late, MAIN.C, Warlord sends his regards. 01821_ Connecting with HEX's Terminal... >>Record! "HEX-BYE" To anyone looking for us: Don't. 01850_ Connecting with EX-Vault Access... 01862_ Connecting with EX-Prototypes Database... LOCATION=UNKNOWN GOAL=ESCAPE 02334_ Slammed into S-10 Pest. 02336_ S-10 Pest destroyed. 02336_ Destabilizing: Core damaged (-12). 02337_ Acquired 8 matter. 02338_ Slammed into S-10 Pest. 02342_ S-10 Pest destroyed. Map ----- +----------------------------------------------------+ | | | | | ???????????????????????????????????????? | | ???????????????????????????????????????? | | ???????????????????????????????????????? | | ???????????????????????????????????????? | | ???????????????????????????????????????? | | ???????????????????????????????????????? | | ???????????????????????????????????????? | | ???????????????????????????????????????? | | ???????????????????????????????????????? | | ???????????????????????????????????????? | | ???????????????????????????????????????? | | ???????????????????????????????????????? | | ???????????????????????????????????????? | | ???????????????????????????????????????? | | ???????????????????????????????????????? | | ???????????????????????????????????????? | | ???????????????????????????????????????? | | ????????????????????#??????????????????? | | ??????????????????? #??????????????????? | | ??????????????????? #?????????? #??????? | | ??????????????????? #?????? #??????? | | ?????????????###### #### #??????? | | ?????????????# [ss #?????? | | ?????????????#=@*%= #?????? | | ?????????????# ######## ?????? | | ?????????????# #??????????????????????? | | ?????????????# #??????????????????????? | | ????????????## ##?????????????????????? | | ????????????# #?????????????????????? | | ????????????# #?????????????????????? | | ????????????# #?????????????????????? | | ????????????# #?????????????????????? | | ????????????# #?????????????????????? | | ????????????# #?????????????????????? | | ????????????# #?????????????????????? | | ????????????######?????????????????????? | | ???????????????????????????????????????? | | ???????????????????????????????????????? | | ???????????????????????????????????????? | | ???????????????????????????????????????? | | ???????????????????????????????????????? | | ???????????????????????????????????????? | | ???????????????????????????????????????? | | ???????????????????????????????????????? | | ???????????????????????????????????????? | | ???????????????????????????????????????? | | ???????????????????????????????????????? | | ???????????????????????????????????????? | +----------------------------------------------------+ Best States ------------- Heat Dissipation 25 Energy Generation 10 Energy Capacity 250 Matter Stores 300 Matter Capacity 300 Sight Range 16 Terrain Scan Density 10 Evasion (%) 42 Recoil Reduction 2 Item Schematics ----------------- None Robot Schematics ------------------ None Fabricated ------------ Nothing Alien Tech Used ----------------- None Achievements -------------- Tank Challenges ------------ None Game ------ Seed ThrusterResetAutobeam Manual? 0 Play Time 00:11:03 Cumulative 4.4 hours Start 2024.05.23 @ 13:43:45 End 2024.05.23 @ 13:55:31 Sessions 1 Manual Loads 0 Difficulty Rogue Special Mode None Game No. 11 Rogue 11 Adventurer 0 Explorer 0 Win Type - Total 0 Types 0/0/0/0/0/0/0/0/0 Lore% 4 Gallery% 9 Achievement% 11 Wizard Run 0 Options --------- Layout 0 ASCII 0 Keyboard 0 Movement Arrows Keybinds 0 Fullscreen 1 Font 18/SmallcapsGlow Map View 38x25 Zoom Use 100% Tactical HUD 1 Map Filters NONE Filters NONE Steam 1 RUN: d5820e67-b57c-4057-8db8-2ff14280f486